[Event "Early-Titled-Tuesday-Blitz-March-26-2024"]
[Site "Chess.com"]
[Date "2024.03.26"]
[Round "5"]
[White "C_K_G"]
[Black "lagunanivaria"]
[Result "0-1"]
[WhiteElo "2238"]
[BlackElo "2462"]
[TimeControl "180+1"]
[EndTime "8:54:46 PDT"]
[Termination "lagunanivaria won by resignation"]

1. e4 {[%clk 0:02:25.1]} 1... c6 {[%clk 0:02:58.8]} 2. Nf3 {[%clk 0:02:25.5]}
2... d5 {[%clk 0:02:58.6]} 3. Nc3 {[%clk 0:02:25.7]} 3... dxe4 {[%clk
0:02:57.8]} 4. Nxe4 {[%clk 0:02:25.7]} 4... Nf6 {[%clk 0:02:58.7]} 5. Nxf6+
{[%clk 0:02:25.9]} 5... exf6 {[%clk 0:02:59.6]} 6. d4 {[%clk 0:02:26]} 6... Bd6
{[%clk 0:03:00.2]} 7. Be2 {[%clk 0:02:21.8]} 7... O-O {[%clk 0:02:56.7]} 8. O-O
{[%clk 0:02:21.7]} 8... Re8 {[%clk 0:02:56]} 9. Re1 {[%clk 0:02:20.7]} 9... Nd7
{[%clk 0:02:54.4]} 10. c4 {[%clk 0:02:19.1]} 10... Nf8 {[%clk 0:02:54.1]} 11. h4
{[%clk 0:02:18.8]} 11... Be6 {[%clk 0:02:52.8]} 12. Be3 {[%clk 0:02:14.5]} 12...
Qd7 {[%clk 0:02:48.1]} 13. h5 {[%clk 0:02:11.4]} 13... Rad8 {[%clk 0:02:46.4]}
14. a3 {[%clk 0:02:05.5]} 14... Bc7 {[%clk 0:02:44.7]} 15. b4 {[%clk 0:02:03]}
15... Bg4 {[%clk 0:02:43.9]} 16. h6 {[%clk 0:02:01.1]} 16... g6 {[%clk
0:02:40.1]} 17. a4 {[%clk 0:01:43.3]} 17... Ne6 {[%clk 0:02:36.9]} 18. d5 {[%clk
0:01:26.7]} 18... cxd5 {[%clk 0:02:33.9]} 19. cxd5 {[%clk 0:01:27.6]} 19... Qxd5
{[%clk 0:02:32.3]} 20. Qxd5 {[%clk 0:01:27.1]} 20... Rxd5 {[%clk 0:02:32.2]} 21.
Bxa7 {[%clk 0:01:27.2]} 21... Bf4 {[%clk 0:02:23.9]} 22. Bc4 {[%clk 0:01:23.4]}
22... Rd6 {[%clk 0:02:11.1]} 23. Bc5 {[%clk 0:01:19.2]} 23... Rdd8 {[%clk
0:01:41]} 24. Bb6 {[%clk 0:01:14.4]} 24... Rb8 {[%clk 0:01:35.9]} 25. Bb5 {[%clk
0:01:06.6]} 25... Rf8 {[%clk 0:01:30.6]} 26. Nd4 {[%clk 0:01:01.1]} 26... Bxh6
{[%clk 0:01:27.3]} 27. Nxe6 {[%clk 0:00:58.1]} 27... Bxe6 {[%clk 0:01:25.2]} 28.
Bc5 {[%clk 0:00:57.4]} 28... Rfc8 {[%clk 0:01:23.6]} 29. Rad1 {[%clk 0:00:44.5]}
29... Bf8 {[%clk 0:01:21.5]} 30. Bxf8 {[%clk 0:00:29.2]} 30... Rxf8 {[%clk
0:01:18.2]} 31. Bd7 {[%clk 0:00:28.1]} 31... Bb3 {[%clk 0:01:09]} 32. Rd3 {[%clk
0:00:15.1]} 32... Rfd8 {[%clk 0:01:09.2]} 33. Ree3 {[%clk 0:00:12.8]} 33... Bc2
{[%clk 0:01:04]} 34. Rc3 {[%clk 0:00:10.9]} 34... Rxd7 {[%clk 0:01:01.9]} 35.
Rxc2 {[%clk 0:00:11.2]} 35... Rbd8 {[%clk 0:00:59.8]} 36. b5 {[%clk 0:00:08.8]}
36... Rd4 {[%clk 0:00:59.7]} 37. Rc7 {[%clk 0:00:08.2]} 37... R8d7 {[%clk
0:00:57.4]} 38. Rxd7 {[%clk 0:00:07.4]} 38... Rxd7 {[%clk 0:00:58.3]} 39. Rc3
{[%clk 0:00:07.9]} 39... Rd4 {[%clk 0:00:56.9]} 40. Rc7 {[%clk 0:00:06.8]} 40...
b6 {[%clk 0:00:56.7]} 41. Rb7 {[%clk 0:00:07.7]} 41... Rxa4 {[%clk 0:00:48.7]}
42. Rxb6 {[%clk 0:00:07.8]} 42... Rb4 {[%clk 0:00:49.1]} 43. Kf1 {[%clk
0:00:07.9]} 43... Kg7 {[%clk 0:00:48.4]} 44. Ke2 {[%clk 0:00:08.4]} 44... f5
{[%clk 0:00:48.7]} 45. Rb8 {[%clk 0:00:08.5]} 45... Kf6 {[%clk 0:00:48.7]} 46.
Kd3 {[%clk 0:00:08.9]} 46... Ke6 {[%clk 0:00:48.1]} 47. Kc3 {[%clk 0:00:08.4]}
47... Rb1 {[%clk 0:00:47.1]} 48. g3 {[%clk 0:00:07.9]} 48... Kd6 {[%clk
0:00:46.5]} 49. f4 {[%clk 0:00:08]} 49... Kc5 {[%clk 0:00:46.5]} 50. Rb7 {[%clk
0:00:07.2]} 50... Rxb5 {[%clk 0:00:44.3]} 51. Rxf7 {[%clk 0:00:06.8]} 51... h6
{[%clk 0:00:43.7]} 52. Rf6 {[%clk 0:00:06.8]} 52... Rb6 {[%clk 0:00:43.7]} 53.
Rf7 {[%clk 0:00:07.1]} 53... Kd5 {[%clk 0:00:42.3]} 54. Re7 {[%clk 0:00:07.3]}
54... Ra6 {[%clk 0:00:39.7]} 55. Kb3 {[%clk 0:00:06.1]} 55... Re6 {[%clk
0:00:38]} 56. Rd7+ {[%clk 0:00:05.4]} 56... Ke4 {[%clk 0:00:38.2]} 57. Rd2
{[%clk 0:00:03.3]} 57... Kf3 {[%clk 0:00:38.2]} 58. Rd3+ {[%clk 0:00:03.2]}
58... Re3 {[%clk 0:00:38.5]} 59. Kc4 {[%clk 0:00:02.1]} 59... Rxd3 {[%clk
0:00:38.3]} 60. Kxd3 {[%clk 0:00:03]} 60... Kxg3 {[%clk 0:00:39.2]} 61. Ke3
{[%clk 0:00:03.6]} 61... h5 {[%clk 0:00:39.8]} 0-1

[Event "Early-Titled-Tuesday-Blitz-March-26-2024"]
[Site "Chess.com"]
[Date "2024.03.26"]
[Round "5"]
[White "wild3000"]
[Black "GeorgiosSouleidis"]
[Result "1/2-1/2"]
[WhiteElo "2461"]
[BlackElo "2614"]
[TimeControl "180+1"]
[EndTime "8:54:48 PDT"]
[Termination "Game drawn by repetition"]

1. d4 {[%clk 0:02:39.5]} 1... Nf6 {[%clk 0:02:59.6]} 2. Nf3 {[%clk 0:02:39.5]}
2... g6 {[%clk 0:02:59.8]} 3. g3 {[%clk 0:02:39.7]} 3... Bg7 {[%clk 0:03:00.1]}
4. Bg2 {[%clk 0:02:40.6]} 4... O-O {[%clk 0:03:00.8]} 5. O-O {[%clk 0:02:40.9]}
5... d6 {[%clk 0:03:00.8]} 6. Nbd2 {[%clk 0:02:40.5]} 6... Nbd7 {[%clk
0:02:53.5]} 7. e4 {[%clk 0:02:40.1]} 7... e5 {[%clk 0:02:48]} 8. d5 {[%clk
0:02:31.5]} 8... Nc5 {[%clk 0:02:40]} 9. Re1 {[%clk 0:02:28.5]} 9... a5 {[%clk
0:02:39.7]} 10. a3 {[%clk 0:02:13.1]} 10... Ne8 {[%clk 0:02:38.6]} 11. Rb1
{[%clk 0:02:12.3]} 11... f5 {[%clk 0:02:34.4]} 12. exf5 {[%clk 0:02:07.7]} 12...
gxf5 {[%clk 0:02:34.1]} 13. b4 {[%clk 0:01:59.9]} 13... axb4 {[%clk 0:02:35]}
14. axb4 {[%clk 0:02:00.7]} 14... Na4 {[%clk 0:02:33.5]} 15. Rb3 {[%clk
0:01:59.1]} 15... e4 {[%clk 0:02:27.6]} 16. Nh4 {[%clk 0:01:58.7]} 16... Nc3
{[%clk 0:02:05.1]} 17. Qh5 {[%clk 0:01:57.4]} 17... Nf6 {[%clk 0:01:48.3]} 18.
Qg5 {[%clk 0:01:54.8]} 18... Nfxd5 {[%clk 0:01:47.5]} 19. Qxd8 {[%clk
0:01:49.7]} 19... Rxd8 {[%clk 0:01:47.4]} 20. Bb2 {[%clk 0:01:46.5]} 20... Bd7
{[%clk 0:01:13.5]} 21. Bh3 {[%clk 0:01:37.5]} 21... Rf8 {[%clk 0:01:01.7]} 22.
Ra3 {[%clk 0:01:27.4]} 22... Rxa3 {[%clk 0:00:57]} 23. Bxa3 {[%clk 0:01:28.3]}
23... Nb5 {[%clk 0:00:56.7]} 24. Bc1 {[%clk 0:01:27.7]} 24... Nxb4 {[%clk
0:00:55.2]} 25. Nxe4 {[%clk 0:01:25.2]} 25... Nxc2 {[%clk 0:00:50.5]} 26. Rf1
{[%clk 0:01:25]} 26... fxe4 {[%clk 0:00:44.7]} 27. Bxd7 {[%clk 0:01:24.4]} 27...
Nbd4 {[%clk 0:00:45.2]} 28. g4 {[%clk 0:01:11.3]} 28... b5 {[%clk 0:00:41.4]}
29. Nf5 {[%clk 0:01:08.2]} 29... Nxf5 {[%clk 0:00:33.7]} 30. gxf5 {[%clk
0:01:05.3]} 30... Nd4 {[%clk 0:00:31.8]} 31. Be3 {[%clk 0:01:01.2]} 31... Nxf5
{[%clk 0:00:27.6]} 32. Bxb5 {[%clk 0:00:59.8]} 32... Nxe3 {[%clk 0:00:26.9]} 33.
fxe3 {[%clk 0:01:00.7]} 33... Rxf1+ {[%clk 0:00:26.8]} 34. Kxf1 {[%clk
0:01:01.6]} 34... Kf7 {[%clk 0:00:10.3]} 35. Bc6 {[%clk 0:00:59.3]} 35... Ke6
{[%clk 0:00:10.1]} 36. Bxe4 {[%clk 0:00:58.6]} 36... h6 {[%clk 0:00:10.7]} 37.
Ke2 {[%clk 0:00:56.7]} 37... Ke5 {[%clk 0:00:10.3]} 38. Kd3 {[%clk 0:00:52.8]}
38... d5 {[%clk 0:00:10]} 39. Bh7 {[%clk 0:00:53]} 39... c5 {[%clk 0:00:09.7]}
40. h3 {[%clk 0:00:47.5]} 40... c4+ {[%clk 0:00:09.9]} 41. Ke2 {[%clk
0:00:47.8]} 41... Bf6 {[%clk 0:00:08.6]} 42. Kd2 {[%clk 0:00:42.5]} 42... Kd6
{[%clk 0:00:08.9]} 43. Ke2 {[%clk 0:00:39.7]} 43... Kc5 {[%clk 0:00:09.4]} 44.
Bg8 {[%clk 0:00:39.4]} 44... Bg5 {[%clk 0:00:09.5]} 45. Bf7 {[%clk 0:00:38.6]}
45... Bf6 {[%clk 0:00:06.8]} 46. Bg8 {[%clk 0:00:38.4]} 46... h5 {[%clk
0:00:04.4]} 47. Bf7 {[%clk 0:00:36.8]} 47... h4 {[%clk 0:00:04.7]} 48. Bg8
{[%clk 0:00:37.2]} 48... c3 {[%clk 0:00:04.2]} 49. Kd3 {[%clk 0:00:37]} 49...
Be5 {[%clk 0:00:03.9]} 50. Bf7 {[%clk 0:00:35.1]} 50... Bg7 {[%clk 0:00:03.1]}
51. Bg8 {[%clk 0:00:35.3]} 51... d4 {[%clk 0:00:03.1]} 52. exd4+ {[%clk
0:00:34.3]} 52... Bxd4 {[%clk 0:00:04]} 53. Bf7 {[%clk 0:00:34.2]} 53... Bf6
{[%clk 0:00:04.6]} 54. Be6 {[%clk 0:00:33.3]} 54... Kd6 {[%clk 0:00:05.5]} 55.
Bg4 {[%clk 0:00:32.8]} 55... Be5 {[%clk 0:00:05.5]} 56. Kc2 {[%clk 0:00:33.2]}
56... Ke7 {[%clk 0:00:06]} 57. Bh5 {[%clk 0:00:33.6]} 57... Kf6 {[%clk
0:00:06.4]} 58. Bg4 {[%clk 0:00:34.5]} 58... Kg5 {[%clk 0:00:07]} 59. Be6 {[%clk
0:00:34.6]} 59... Bg7 {[%clk 0:00:07.9]} 60. Bd7 {[%clk 0:00:34.8]} 60... Kf4
{[%clk 0:00:08.8]} 61. Bc8 {[%clk 0:00:35]} 61... Bf6 {[%clk 0:00:08.2]} 62. Bg4
{[%clk 0:00:35.9]} 62... Bg7 {[%clk 0:00:08.2]} 63. Bc8 {[%clk 0:00:36.8]} 63...
Bf6 {[%clk 0:00:08.5]} 64. Bg4 {[%clk 0:00:36.7]} 64... Bg7 {[%clk 0:00:09]} 65.
Bc8 {[%clk 0:00:36.5]} 1/2-1/2

[Event "Early-Titled-Tuesday-Blitz-March-26-2024"]
[Site "Chess.com"]
[Date "2024.03.26"]
[Round "5"]
[White "Misterfox120"]
[Black "Kunalm64"]
[Result "1/2-1/2"]
[WhiteElo "2474"]
[BlackElo "2630"]
[TimeControl "180+1"]
[EndTime "8:54:49 PDT"]
[Termination "Game drawn by repetition"]

1. d4 {[%clk 0:03:00.9]} 1... Nf6 {[%clk 0:02:59.3]} 2. Nc3 {[%clk 0:03:00.8]}
2... d5 {[%clk 0:02:58.8]} 3. Bf4 {[%clk 0:03:00.6]} 3... c6 {[%clk 0:02:49.3]}
4. e3 {[%clk 0:02:54.8]} 4... g6 {[%clk 0:02:42.6]} 5. h4 {[%clk 0:02:43.3]}
5... h5 {[%clk 0:02:41.7]} 6. Nf3 {[%clk 0:02:42.3]} 6... Bg4 {[%clk 0:02:41.1]}
7. Be2 {[%clk 0:02:42.4]} 7... Bxf3 {[%clk 0:02:39.7]} 8. Bxf3 {[%clk
0:02:43.3]} 8... Nbd7 {[%clk 0:02:32.1]} 9. e4 {[%clk 0:02:32.5]} 9... dxe4
{[%clk 0:02:30.6]} 10. Nxe4 {[%clk 0:02:33.4]} 10... Nxe4 {[%clk 0:02:30.2]} 11.
Bxe4 {[%clk 0:02:34.3]} 11... Nf6 {[%clk 0:02:28.4]} 12. Bf3 {[%clk 0:02:31.6]}
12... Bg7 {[%clk 0:02:22.1]} 13. O-O {[%clk 0:02:29.8]} 13... O-O {[%clk
0:02:20.7]} 14. Be5 {[%clk 0:02:29]} 14... Qd7 {[%clk 0:02:12.9]} 15. c3 {[%clk
0:02:25.4]} 15... Nd5 {[%clk 0:02:08]} 16. Bxg7 {[%clk 0:02:26.3]} 16... Kxg7
{[%clk 0:02:07.9]} 17. g3 {[%clk 0:02:21.3]} 17... Nf6 {[%clk 0:01:58.9]} 18.
Re1 {[%clk 0:02:10.8]} 18... Rad8 {[%clk 0:01:56.5]} 19. Qe2 {[%clk 0:02:10.8]}
19... Rfe8 {[%clk 0:01:54.9]} 20. Rad1 {[%clk 0:02:06.1]} 20... a6 {[%clk
0:01:51.2]} 21. Qe5 {[%clk 0:02:00.2]} 21... Qd6 {[%clk 0:01:49.5]} 22. Qxd6
{[%clk 0:01:57.9]} 22... exd6 {[%clk 0:01:49.5]} 23. Kf1 {[%clk 0:01:55.1]}
23... Rxe1+ {[%clk 0:01:46.8]} 24. Rxe1 {[%clk 0:01:56]} 24... Kf8 {[%clk
0:01:46.9]} 25. Re3 {[%clk 0:01:53.9]} 25... d5 {[%clk 0:01:46.4]} 26. Ke2
{[%clk 0:01:49.4]} 26... Ne8 {[%clk 0:01:46.1]} 27. Kd2 {[%clk 0:01:49.9]} 27...
Nd6 {[%clk 0:01:46.1]} 28. Be2 {[%clk 0:01:47.1]} 28... a5 {[%clk 0:01:43.1]}
29. Bd3 {[%clk 0:01:46.1]} 29... a4 {[%clk 0:01:36.8]} 30. a3 {[%clk 0:01:45.9]}
30... b5 {[%clk 0:01:31.3]} 31. Kc2 {[%clk 0:01:42]} 31... Rd7 {[%clk
0:01:30.3]} 32. Re5 {[%clk 0:01:40.4]} 32... f6 {[%clk 0:01:24.5]} 33. Re6
{[%clk 0:01:39.8]} 33... Kf7 {[%clk 0:01:23.8]} 34. Re2 {[%clk 0:01:39.6]} 34...
f5 {[%clk 0:01:21.9]} 35. Re5 {[%clk 0:01:24.7]} 35... Re7 {[%clk 0:01:12.3]}
36. Rxe7+ {[%clk 0:01:08.7]} 36... Kxe7 {[%clk 0:01:12]} 37. Kd2 {[%clk
0:01:08.7]} 37... Kf6 {[%clk 0:01:05.2]} 38. Ke3 {[%clk 0:01:01.8]} 38... g5
{[%clk 0:01:04.5]} 39. Be2 {[%clk 0:00:53.6]} 39... f4+ {[%clk 0:00:56.5]} 40.
Kf3 {[%clk 0:00:24.4]} 40... fxg3 {[%clk 0:00:29.7]} 41. fxg3 {[%clk 0:00:25.3]}
41... Nf5 {[%clk 0:00:12.2]} 42. Bd3 {[%clk 0:00:11]} 42... Nd6 {[%clk 0:00:12]}
43. Be2 {[%clk 0:00:09.2]} 43... Ne4 {[%clk 0:00:12.3]} 44. Bd3 {[%clk
0:00:04.1]} 44... Nd2+ {[%clk 0:00:11]} 45. Ke3 {[%clk 0:00:04.1]} 45... Nc4+
{[%clk 0:00:10.2]} 46. Bxc4 {[%clk 0:00:04.2]} 46... bxc4 {[%clk 0:00:10.2]} 47.
hxg5+ {[%clk 0:00:02.4]} 47... Kxg5 {[%clk 0:00:10.4]} 48. Kf2 {[%clk
0:00:02.1]} 48... Kg4 {[%clk 0:00:10.3]} 49. Kg2 {[%clk 0:00:02.5]} 49... Kg5
{[%clk 0:00:10.5]} 50. Kf2 {[%clk 0:00:02]} 50... Kf6 {[%clk 0:00:10.7]} 51. Ke2
{[%clk 0:00:02.2]} 51... Kg5 {[%clk 0:00:10.7]} 52. Kf2 {[%clk 0:00:02.7]}
1/2-1/2

[Event "Early-Titled-Tuesday-Blitz-March-26-2024"]
[Site "Chess.com"]
[Date "2024.03.26"]
[Round "5"]
[White "m_ezat"]
[Black "ogpin"]
[Result "1/2-1/2"]
[WhiteElo "2553"]
[BlackElo "2279"]
[TimeControl "180+1"]
[EndTime "8:54:50 PDT"]
[Termination "Game drawn by stalemate"]

1. d4 {[%clk 0:02:49.8]} 1... Nf6 {[%clk 0:03:00]} 2. c4 {[%clk 0:02:45.3]} 2...
e6 {[%clk 0:03:00.3]} 3. Nc3 {[%clk 0:02:44.5]} 3... Bb4 {[%clk 0:03:00.7]} 4.
Bg5 {[%clk 0:02:39.8]} 4... O-O {[%clk 0:03:00]} 5. Qc2 {[%clk 0:02:33.2]} 5...
h6 {[%clk 0:02:57.6]} 6. Bh4 {[%clk 0:02:30.6]} 6... d6 {[%clk 0:02:55.5]} 7. e4
{[%clk 0:02:28.9]} 7... Nbd7 {[%clk 0:02:55.1]} 8. Nf3 {[%clk 0:02:26.8]} 8...
Bxc3+ {[%clk 0:02:52.4]} 9. bxc3 {[%clk 0:02:24.8]} 9... e5 {[%clk 0:02:51.8]}
10. Bd3 {[%clk 0:02:24.7]} 10... Re8 {[%clk 0:02:44.4]} 11. O-O {[%clk
0:02:08.6]} 11... Nf8 {[%clk 0:02:44.5]} 12. Rad1 {[%clk 0:01:54.8]} 12... Ng6
{[%clk 0:02:43.1]} 13. Bg3 {[%clk 0:01:53.8]} 13... Qe7 {[%clk 0:02:34.4]} 14.
c5 {[%clk 0:01:51.8]} 14... exd4 {[%clk 0:02:26.9]} 15. cxd6 {[%clk 0:01:49.1]}
15... cxd6 {[%clk 0:02:26.4]} 16. cxd4 {[%clk 0:01:48.8]} 16... Nxe4 {[%clk
0:02:22.3]} 17. Rde1 {[%clk 0:01:45.4]} 17... d5 {[%clk 0:02:22]} 18. Ne5 {[%clk
0:01:44.8]} 18... Nxe5 {[%clk 0:02:17.4]} 19. Bxe5 {[%clk 0:01:42.1]} 19... Be6
{[%clk 0:01:50]} 20. f3 {[%clk 0:01:41.5]} 20... Nd6 {[%clk 0:01:36.1]} 21. f4
{[%clk 0:01:41.1]} 21... Rac8 {[%clk 0:01:26.1]} 22. Qb1 {[%clk 0:01:31.5]}
22... Qd7 {[%clk 0:00:57.8]} 23. f5 {[%clk 0:01:30.1]} 23... Nxf5 {[%clk
0:00:49.9]} 24. Rxf5 {[%clk 0:01:26.2]} 24... Bxf5 {[%clk 0:00:41.5]} 25. Bxf5
{[%clk 0:01:26.1]} 25... Qc6 {[%clk 0:00:40.3]} 26. Bxc8 {[%clk 0:01:24.9]}
26... Qxc8 {[%clk 0:00:40.9]} 27. h3 {[%clk 0:01:22.5]} 27... Qc3 {[%clk
0:00:35.6]} 28. Kh2 {[%clk 0:01:21.4]} 28... f6 {[%clk 0:00:35.3]} 29. Bg3
{[%clk 0:01:21.4]} 29... Rxe1 {[%clk 0:00:34.5]} 30. Qxe1 {[%clk 0:01:20.4]}
30... Qxd4 {[%clk 0:00:34.5]} 31. Qe7 {[%clk 0:01:16.4]} 31... b5 {[%clk
0:00:30.8]} 32. Qe8+ {[%clk 0:01:15.1]} 32... Kh7 {[%clk 0:00:31]} 33. Qxb5
{[%clk 0:01:15.7]} 33... Qd2 {[%clk 0:00:28.4]} 34. Qb1+ {[%clk 0:01:12.4]}
34... Kg8 {[%clk 0:00:27.7]} 35. Qb8+ {[%clk 0:01:11.4]} 35... Kh7 {[%clk
0:00:27.7]} 36. Qxa7 {[%clk 0:01:11.3]} 36... d4 {[%clk 0:00:27.8]} 37. Qc7
{[%clk 0:01:06]} 37... d3 {[%clk 0:00:27.6]} 38. Bf4 {[%clk 0:01:00]} 38... Qxa2
{[%clk 0:00:27.6]} 39. Qd7 {[%clk 0:00:53]} 39... Qe2 {[%clk 0:00:25.8]} 40.
Qf5+ {[%clk 0:00:52.5]} 40... Kg8 {[%clk 0:00:26.2]} 41. h4 {[%clk 0:00:44.8]}
41... Qf2 {[%clk 0:00:25.5]} 42. Qd5+ {[%clk 0:00:33.9]} 42... Kh7 {[%clk
0:00:25.2]} 43. Qxd3+ {[%clk 0:00:33.6]} 43... Kg8 {[%clk 0:00:24.1]} 44. Qg3
{[%clk 0:00:33.9]} 44... Qxg3+ {[%clk 0:00:14.6]} 45. Bxg3 {[%clk 0:00:33.3]}
45... h5 {[%clk 0:00:13.6]} 46. Kg1 {[%clk 0:00:30.4]} 46... g5 {[%clk
0:00:12.9]} 47. Kf2 {[%clk 0:00:30.3]} 47... Kf7 {[%clk 0:00:12.7]} 48. Ke3
{[%clk 0:00:30.6]} 48... Ke6 {[%clk 0:00:11.3]} 49. Ke4 {[%clk 0:00:27.2]} 49...
f5+ {[%clk 0:00:11.4]} 50. Kd4 {[%clk 0:00:27.3]} 50... f4 {[%clk 0:00:11.8]}
51. Bxf4 {[%clk 0:00:22.9]} 51... gxh4 {[%clk 0:00:02.3]} 52. Ke4 {[%clk
0:00:20.1]} 52... Kf6 {[%clk 0:00:02.4]} 53. Be3 {[%clk 0:00:16.4]} 53... Kg6
{[%clk 0:00:02.9]} 54. Ke5 {[%clk 0:00:16]} 54... h3 {[%clk 0:00:02.1]} 55. gxh3
{[%clk 0:00:15.5]} 55... h4 {[%clk 0:00:03]} 56. Kf4 {[%clk 0:00:14.5]} 56...
Kh5 {[%clk 0:00:03.9]} 57. Kf5 {[%clk 0:00:14.7]} 1/2-1/2

[Event "Early-Titled-Tuesday-Blitz-March-26-2024"]
[Site "Chess.com"]
[Date "2024.03.26"]
[Round "5"]
[White "Titus369"]
[Black "vladislavkovalev"]
[Result "0-1"]
[WhiteElo "2628"]
[BlackElo "2864"]
[TimeControl "180+1"]
[EndTime "8:54:54 PDT"]
[Termination "vladislavkovalev won on time"]

1. e4 {[%clk 0:03:00.9]} 1... e5 {[%clk 0:02:59.7]} 2. Nf3 {[%clk 0:02:59.2]}
2... Nc6 {[%clk 0:02:59.9]} 3. Bb5 {[%clk 0:02:59]} 3... a6 {[%clk 0:03:00.4]}
4. Ba4 {[%clk 0:02:58.6]} 4... Nf6 {[%clk 0:03:00.8]} 5. O-O {[%clk 0:02:58.7]}
5... Be7 {[%clk 0:03:00.6]} 6. d3 {[%clk 0:02:58.6]} 6... b5 {[%clk 0:03:00.4]}
7. Bb3 {[%clk 0:02:58.8]} 7... d6 {[%clk 0:03:01.1]} 8. a4 {[%clk 0:02:57.7]}
8... Rb8 {[%clk 0:02:57.2]} 9. c3 {[%clk 0:02:57.5]} 9... O-O {[%clk 0:02:57.1]}
10. Re1 {[%clk 0:02:53.9]} 10... Na5 {[%clk 0:02:36.9]} 11. Bc2 {[%clk
0:02:53.2]} 11... b4 {[%clk 0:02:36.9]} 12. cxb4 {[%clk 0:02:26]} 12... Nc6
{[%clk 0:02:36.4]} 13. b5 {[%clk 0:02:25.9]} 13... axb5 {[%clk 0:02:34.7]} 14.
axb5 {[%clk 0:02:26.8]} 14... Rxb5 {[%clk 0:02:26.2]} 15. Nc3 {[%clk 0:02:09.5]}
15... Rb8 {[%clk 0:02:25.3]} 16. h3 {[%clk 0:02:03.1]} 16... Nb4 {[%clk
0:02:23.9]} 17. Bb1 {[%clk 0:01:54.6]} 17... c5 {[%clk 0:02:23.6]} 18. Kh2
{[%clk 0:01:48.7]} 18... h6 {[%clk 0:02:23.7]} 19. g4 {[%clk 0:01:47.4]} 19...
Be6 {[%clk 0:02:16.7]} 20. Rg1 {[%clk 0:01:43.5]} 20... Nh7 {[%clk 0:02:15.3]}
21. g5 {[%clk 0:01:20.9]} 21... hxg5 {[%clk 0:02:08.8]} 22. Bd2 {[%clk
0:01:10.3]} 22... f6 {[%clk 0:02:06.6]} 23. Ne2 {[%clk 0:01:07.1]} 23... Nc6
{[%clk 0:02:00.1]} 24. Qa4 {[%clk 0:00:51.8]} 24... Ra8 {[%clk 0:01:53.6]} 25.
Qxa8 {[%clk 0:00:37.7]} 25... Qxa8 {[%clk 0:01:54.5]} 26. Rxa8 {[%clk
0:00:37.2]} 26... Rxa8 {[%clk 0:01:55.4]} 27. Nc3 {[%clk 0:00:36]} 27... Nd4
{[%clk 0:01:42.5]} 28. Nxd4 {[%clk 0:00:33.5]} 28... cxd4 {[%clk 0:01:43.4]} 29.
Nd5 {[%clk 0:00:33.1]} 29... Bxd5 {[%clk 0:01:38.2]} 30. exd5 {[%clk 0:00:34]}
30... Nf8 {[%clk 0:01:38.5]} 31. b4 {[%clk 0:00:33.1]} 31... Nd7 {[%clk
0:01:38.5]} 32. Rc1 {[%clk 0:00:29.8]} 32... Nb6 {[%clk 0:01:37.3]} 33. Rc2
{[%clk 0:00:29.8]} 33... Kf8 {[%clk 0:01:23.1]} 34. Ba2 {[%clk 0:00:28.3]} 34...
Ke8 {[%clk 0:01:21.9]} 35. Bb3 {[%clk 0:00:24.9]} 35... Ra3 {[%clk 0:01:14.5]}
36. Rb2 {[%clk 0:00:23.5]} 36... Kd7 {[%clk 0:01:14.5]} 37. Rb1 {[%clk
0:00:23.2]} 37... f5 {[%clk 0:01:02.2]} 38. Bc1 {[%clk 0:00:21.7]} 38... Ra8
{[%clk 0:01:02]} 39. Bd2 {[%clk 0:00:22]} 39... Bf6 {[%clk 0:00:58.5]} 40. Kg2
{[%clk 0:00:20.2]} 40... e4 {[%clk 0:00:54]} 41. Re1 {[%clk 0:00:16.1]} 41...
Ra3 {[%clk 0:00:52.4]} 42. Rb1 {[%clk 0:00:13.8]} 42... exd3 {[%clk 0:00:45.8]}
43. Kf1 {[%clk 0:00:10.8]} 43... Ra8 {[%clk 0:00:39.7]} 44. Ke1 {[%clk
0:00:07.1]} 44... Kc7 {[%clk 0:00:20.9]} 45. Kf1 {[%clk 0:00:06.9]} 45... Kb7
{[%clk 0:00:20.7]} 46. Bd1 {[%clk 0:00:07.1]} 46... Nc4 {[%clk 0:00:18.4]} 47.
Bc1 {[%clk 0:00:04.2]} 47... d2 {[%clk 0:00:18.2]} 48. Bb2 {[%clk 0:00:04.1]}
48... Re8 {[%clk 0:00:13]} 49. Be2 {[%clk 0:00:03.4]} 49... d3 {[%clk 0:00:11]}
50. Bxd3 {[%clk 0:00:02.8]} 50... Nxb2 {[%clk 0:00:11.7]} 51. Bc2 {[%clk
0:00:02.9]} 51... Bc3 {[%clk 0:00:09.5]} 52. Kg2 {[%clk 0:00:03]} 52... Re1
{[%clk 0:00:10.1]} 53. Rxb2 {[%clk 0:00:01.6]} 53... Bxb2 {[%clk 0:00:10.3]} 54.
Bxf5 {[%clk 0:00:02.1]} 54... d1=Q {[%clk 0:00:10.5]} 0-1